Cogmind - Beta 13 @@@ ROGUE MODE // 2024.04.02 @ 00:52:27 Player: stenky Result: Destroyed by 77-L7C(R) with Subdweller Laser Performance ------------- Evolutions (0) 0 Regions Visited (3) 600 Robots Destroyed (6) 30 Value Destroyed (177) 177 Prototype IDs (0) 0 Alien Tech Used (0) 0 Bonus (0) 0 TOTAL SCORE: 807 Bonus ------- None Cogmind --------- Core Integrity 0/250 Matter 249/300 Energy 124/125 System Corruption 3% Temperature Cool (6) Movement Rolling (100) Location -10/Subcaves Parts ------- > --- POWER (1) -------- Light Ion Engine > --- PROPULSION (2) --- Compact Wheel > --- UTILITY (2) ------ (None) > --- WEAPON (2) ------- Light Cannon > --- INVENTORY (5) ---- Wheel Wheel High-capacity Storage Unit High-capacity Storage Unit Improved Terrain Scanner Peak State ------------ > --- POWER ------------ Light Ion Engine > --- PROPULSION ------- Wheel Compact Wheel > --- UTILITY ---------- Scrap Shield > --- WEAPON ----------- Assault Rifle Light Cannon > --- INVENTORY -------- Wheel Wheel High-capacity Storage Unit [Rating: 9] Favorites ----------- Power Light Ion Engine Engine Light Ion Engine Propulsion Wheel Leg Aluminum Leg Wheel Wheel Utility High-capacity Storage Unit Storage High-capacity Storage Unit Protection Light Armor Plating Weapon Light Assault Rifle Energy Gun EM Pulse Gun Ballistic Gun Light Assault Rifle Ballistic Cannon Light Cannon Special Weapon Mining Laser Slashing Weapon Mining Claw Build | -11 -10 -10 -10 ------- Run | Yrd Mat Min Sub Slots Evolved . | . . . . Power . | . . . . Propulsion . | . . . . Utility . | . . . . Weapon . | . . . . Parts Attached 22 | 6 7 6 3 Power 2 | 1 . 1 . Engine 2 | 1 . 1 . Core . | . . . . Reactor . | . . . . Propulsion 6 | 2 2 2 . Treads . | . . . . Leg 2 | . 2 . . Wheel 4 | 2 . 2 . Hover . | . . . . Flight . | . . . . Utility 3 | . 2 . 1 Device . | . . . . Storage 1 | . 1 . . Processor . | . . . . Hackware . | . . . . Protection 2 | . 1 . 1 Artifact . | . . . . Weapon 11 | 3 3 3 2 Energy Gun 2 | 2 . . . Energy Cannon . | . . . . Ballistic Gun 5 | 1 2 1 1 Ballistic Cannon 1 | . . . 1 Launcher . | . . . . Special Weapon 1 | . . 1 . Impact Weapon . | . . . . Slashing Weapon 2 | . 1 1 . Piercing Weapon . | . . . . Special Melee Weapon . | . . . . Unidentified Prototypes . | . . . . Parts Lost 7 | 1 1 2 3 Power . | . . . . Propulsion 2 | . 1 . 1 Utility 2 | . . 1 1 Weapon 3 | 1 . 1 1 Highest Loss Streak 3 | 1 1 2 3 To Critical Strikes . | . . . . Average Slot Usage (%) 88 | . 90 88 82 Engine 14 | . 14 14 14 Leg 8 | . 18 . . Wheel 19 | . 8 27 26 Storage 11 | . 13 14 1 Protection 6 | . 5 4 12 Ballistic Gun 19 | . 25 16 12 Ballistic Cannon 2 | . . . 13 Special Weapon 2 | . . 5 . Slashing Weapon 3 | . 2 5 . Naked Turns . | . . . . Heaviest Build 48 | 7 48 48 46 Greatest Support 26 | 20 20 26 26 Greatest Overweight (x) 4 | . 4 2 1 Average Overweight (x) . | . 1 1 . Largest Inventory Capacity 20 | 5 20 20 20 Average Capacity 15 | 5 19 20 5 Most Carried 16 | 5 10 15 16 Average Carried 8 | 2 8 12 5 Final Capacity 20 | 5 20 20 5 Final Carried 14 | 3 10 14 5 Class Distribution -------------------- 100% | Mutant Dominant Class ---------------- Mutant | -10/Materials Mutant | -10/Mines Mutant | -10/Subcaves Resources | -11 -10 -10 -10 ----------- Run | Yrd Mat Min Sub Matter Collected 431 | 255 89 23 64 Remotely . | . . . . Salvage Created 252 | 50 89 55 58 Parts 13 | 1 3 6 3 Haulers Intercepted . | . . . . Recyclers Shooed . | . . . . Parts Field Recycled . | . . . . Retrieved Matter . | . . . . Parts Self-Destructed 5 | . . . 5 Prevented . | . . . . Kills | -11 -10 -10 -10 ------- Run | Yrd Mat Min Sub Combat Hostiles Destroyed 7 | 1 2 2 2 Melee 1 | . . 1 . Guns 4 | 1 2 1 . Cannons 2 | . . . 2 Classes Destroyed 5 | 1 . 2 2 Tunneler 1 | . . 1 . Swarmer 1 | . . . 1 Grunt 3 | 1 2 . . Sentry 1 | . . . 1 Assembled 2 | . . 2 . Best Kill Streak 2 | 1 1 1 2 Combat Bots Only 2 | 1 1 1 2 Max Kills in Single Turn 1 | 1 1 1 1 Gunslinging . | . . . . Exploded . | . . . . Melee 1 | . . 1 . Uniques/NPCs Destroyed . | . . . . Combat | -11 -10 -10 -10 -------- Run | Yrd Mat Min Sub Hostile Shots Fired 109 | 11 36 13 49 Missed 38 | 3 12 6 17 Damage Taken 1295 | 86 298 253 658 Core 255 | 12 46 43 154 Absorbed by Shields . | . . . . Core Remaining (%) 95 | 95 . . . Volleys Fired 58 | 8 14 26 10 Largest 2 | 2 2 2 2 Hottest 100 | 80 40 100 55 Shots Fired 93 | 14 28 31 20 Gun 67 | 14 28 15 10 Cannon 10 | . . . 10 Launcher . | . . . . Special 16 | . . 16 . Kinetic 63 | . 28 15 20 Thermal 16 | . . 16 . Explosive . | . . . . Electromagnetic 14 | 14 . . . Robot Hit Streak 7 | 2 4 6 7 Robot Miss Streak 5 | 5 1 3 3 Penetration Max . | . . . . Secondary Targets . | . . . . Shots Hit Robots 48 | 7 19 9 13 Core Hits 21 | 2 6 8 5 Critical Kills . | . . . . Critical Parts Destroyed . | . . . . Critical Strikes 1 | . . . 1 Blast 1 | . . . 1 Melee Attacks 14 | . 14 . . Impact . | . . . . Slashing 14 | . 14 . . Piercing . | . . . . Sneak Attacks . | . . . . Combat Hostiles . | . . . . Follow-up Attacks . | . . . . Damage Inflicted 569 | 107 160 115 187 Guns 407 | 107 160 72 68 Cannons 119 | . . . 119 Explosions . | . . . . Melee . | . . . . Ramming 43 | . . 43 . Kinetic 419 | . 160 72 187 Thermal . | . . . . Explosive . | . . . . Electromagnetic 107 | 107 . . . Impact . | . . . . Slashing . | . . . . Piercing . | . . . . Highest Corruption 3 | . 1 3 3 Average Corruption 2 | . 1 2 3 Corruption Purged . | . . . . Corruption Blocked . | . . . . Effects 7 | . 2 4 1 Message Errors 4 | . 1 3 . Heat Flow Errors 1 | . 1 . . Data Loss (minor) 2 | . . 1 1 Overload Shots . | . . . . Overflow Damage . | . . . . Projectiles . | . . . . Explosions . | . . . . Melee . | . . . . Knockbacks . | . . . . Impact . | . . . . Kinetic . | . . . . Secondary . | . . . . Self-Inflicted Damage 20 | . . 20 . Shots . | . . . . Rammed 8 | . . 8 . Targets Rammed 8 | . . 8 . Kicked . | . . . . Crushed . | . . . . Highest Temperature 190 | 156 190 80 . Average Temperature 42 | 88 39 27 . Received Heat Transfer 225 | 48 87 . 90 Siege Activations . | . . . . Robots Corrupted . | . . . . Combat Hostiles . | . . . . Parts Fried 2 | 2 . . . Impact Corruptions . | . . . . Robots Melted . | . . . . Combat Hostiles . | . . . . Parts Melted . | . . . . Heat Transferred . | . . . . Parts Sabotaged . | . . . . Parts Stolen . | . . . . Parts Stripped . | . . . . Power Chain Reactions . | . . . . Alert | -11 -10 -10 -10 ------- Run | Yrd Mat Min Sub Peak Influence 101 | 20 101 8 . Initial 13 | . 13 . . Average 18 | 5 38 2 . Maximum Alert Level . | . . . . Low Security (%) 100 | 100 100 100 . Level 1 . | . . . . Level 2 . | . . . . Level 3 . | . . . . Level 4 . | . . . . Level 5 . | . . . . High Security . | . . . . Max Security . | . . . . Squads Dispatched . | . . . . Investigation . | . . . . Extermination . | . . . . Reinforcement . | . . . . Assault . | . . . . Garrison . | . . . . Intercept . | . . . . Searches Triggered . | . . . . Construction Impeded . | . . . . Haulers Reinforced . | . . . . Active Scanning Responses . | . . . . Cargo Convoy Interrupts . | . . . . Stealth | -11 -10 -10 -10 --------- Run | Yrd Mat Min Sub Distress Signals 1 | . 1 . . Communications Jammed . | . . . . Distress Signals . | . . . . Times Spotted 34 | 1 9 11 13 Peak Tracking Total 18 | 1 3 18 8 Tactical Retreats 1 | . . 1 . Traps | -11 -10 -10 -10 ------- Run | Yrd Mat Min Sub Traps Triggered . | . . . . Indirectly . | . . . . Trap Hack Attempts . | . . . . Triggered . | . . . . Disarmed . | . . . . Reprogrammed . | . . . . Reused . | . . . . Traps Extracted . | . . . . Installed . | . . . . Triggered . | . . . . Machines | -11 -10 -10 -10 ---------- Run | Yrd Mat Min Sub Machines Disabled . | . . . . Max in Single Turn . | . . . . Machines Repaired . | . . . . Machines Dismantled . | . . . . Machines Sabotaged . | . . . . Overloaded Fab Kills . | . . . . Hacking | -11 -10 -10 -10 --------- Run | Yrd Mat Min Sub Machines Accessed . | . . . . Terminals . | . . . . Fabricators . | . . . . Repair Stations . | . . . . Recycling Units . | . . . . Scanalyzers . | . . . . Garrison Access . | . . . . Total Hacks . | . . . . Successful . | . . . . Failed . | . . . . Catastrophic . | . . . . Database Lockouts . | . . . . Manual . | . . . . Terminals . | . . . . Fabricators . | . . . . Repair Stations . | . . . . Recycling Units . | . . . . Scanalyzers . | . . . . Garrison Access . | . . . . Terminal Hacks . | . . . . Fabricator Hacks . | . . . . Repair Station Hacks . | . . . . Recycling Unit Hacks . | . . . . Scanalyzer . | . . . . Garrison Access Hacks . | . . . . Unauthorized Hacks . | . . . . Terminals . | . . . . Fabricators . | . . . . Repair Stations . | . . . . Recycling Units . | . . . . Scanalyzers . | . . . . Garrison Access . | . . . . Data Cores Recovered . | . . . . Used . | . . . . Hacking Detections . | . . . . Full Trace Events . | . . . . Feedback Events . | . . . . Feedback Blocked . | . . . . Robot Schematics Acquired . | . . . . Robots Built . | . . . . Authchips . | . . . . Time . | . . . . Total Robot Build Rating . | . . . . Part Schematics Acquired . | . . . . Parts Built . | . . . . Authchips . | . . . . Time . | . . . . Total Part Build Rating . | . . . . Parts Repaired . | . . . . Time . | . . . . Parts Recycled . | . . . . Recycled Matter . | . . . . Retrieved Matter . | . . . . Retrieved Components . | . . . . Parts Scanalyzed . | . . . . Part Schematics Acquired . | . . . . Parts Damaged . | . . . . Bothacking | -11 -10 -10 -10 ------------ Run | Yrd Mat Min Sub Used RIF Installer . | . . . . Robots Hacked . | . . . . Non-combat . | . . . . Combat . | . . . . Robot Hacks Applied . | . . . . Relay Couplers Released . | . . . . Fabnet Peak Effective % . | . . . . Robots Rewired . | . . . . Allies Hacked . | . . . . Hacks Repelled . | . . . . Allies | -11 -10 -10 -10 -------- Run | Yrd Mat Min Sub Total Allies . | . . . . Largest Group . | . . . . Highest-Rated Group . | . . . . Highest-Rated Ally . | . . . . Total Orders . | . . . . Ally Attacks . | . . . . Total Damage . | . . . . Kills . | . . . . Allies Corrupted . | . . . . Allies Melted . | . . . . Intel | -11 -10 -10 -10 ------- Run | Yrd Mat Min Sub Robot Analysis Total . | . . . . Derelict Logs Recovered . | . . . . Drone Launches . | . . . . Drone Recoveries . | . . . . Exploration | -11 -10 -10 -10 ------------- Run | Yrd Mat Min Sub Turns Passed 1269 | 150 473 445 201 Spaces Moved 841 | 150 201 317 173 Core 22 | 22 . . . Treads . | . . . . Legs 108 | . 106 2 . Wheels 711 | 128 95 315 173 Hover . | . . . . Flight . | . . . . Fastest Speed 50 | 50 80 105 90 Average Speed 116 | 75 186 105 91 Slowest Speed 260 | 80 260 260 115 Overloaded Moves . | . . . . Propulsion Burnouts . | . . . . Robots Hopped . | . . . . Cave-ins Triggered 1 | . 1 . . Exploration Rate (%) 17 | 8 26 25 10 Regions Visited 3 Branch Regions 2 Pre-discovered Areas . | . . . . Known Exits Taken . | . . . . Unknown Exits Taken 3 | 1 1 1 . Scrap Searched . | . . . . Spaces Dug 11 | . 5 6 . Terrain Destroyed 15 | . 5 10 . Melee 5 | . 5 . . Projectile 10 | . . 10 . AOE . | . . . . Terrain Rammed . | . . . . Walls Destroyed . | . . . . Machines Disabled . | . . . . Actions | -11 -10 -10 -10 --------- Run | Yrd Mat Min Sub Total 985 | 172 249 363 201 Wait . | . . . . Move 838 | 149 200 316 173 Hop . | . . . . Pick Up 30 | 9 12 6 3 Fast Attach . | . . . . Attach 12 | 6 4 1 1 Detach . | . . . . Swap 10 | . 3 5 2 Drop 15 | . 2 1 12 Fire 58 | 8 14 26 10 Melee 14 | . 14 . . Ram 8 | . . 8 . Kick . | . . . . Crush . | . . . . Escape Stasis . | . . . . Rewire . | . . . . Trap . | . . . . Miscellaneous . | . . . . Route ------- -11/Scrapyard -10/Materials -10/Mines -10/Subcaves History --------- Turn | Location | Event 2 | -11/Scrapyard | Met Revision 17 89 | -11/Scrapyard | Discovered new exit (range 8) 151 | -11/Scrapyard | Entered Materials 306 | -10/Materials | Crushed by falling debris 306 | -10/Materials | Discovered new exit (range 16) 331 | -10/Materials | Build established: Mutant 624 | -10/Materials | Entered Mines 703 | -10/Mines | Assembled infested the area 708 | -10/Mines | Assisted by a Guerilla fighting off Assembled 911 | -10/Mines | Discovered new exit (range 3) 1069 | -10/Mines | Entered Subcaves 1215 | -10/Subcaves | Ambushed by swarm of Subdwellers 1215 | -10/Subcaves | Ambushed by Subdwellers from Twisted Machinery 1239 | -10/Subcaves | Core integrity fell below 50% 1263 | -10/Subcaves | Lost 4 allies 1270 | -10/Subcaves | Core integrity fell below 20% 1270 | -10/Subcaves | Destroyed by 77-L7C(R) with Subdweller Laser Last Messages --------------- Acquired 4 matter. Acquired 2 matter. A mess of Twisted Machinery falls from the cavern ceiling. LJ-WG9(R) comes tumbling into view. AJ-QZM(h): "The Subs are coming!" B9-4AZ(R) angrily emerges from the Twisted Machinery. HV Slug penetrates LJ-WG9(R). LJ-WG9(R) knocked back. B9-4AZ(R) destroyed. NZ-YZL(R) destroyed. AJ-QZM(h) destroyed. Critical hit (Destroy). N8-CY5(R) suffers critical hit (Destroy). Wheel destroyed. TR-SX1(R) emerges from concealment. System corrupted: Component data lost. Scrap Shield destroyed. Assault Rifle destroyed. Map ----- +----------------------------------------------------+ | | | | | | | ?????????????????????????????????????????????????? | | ?????????????????????????????????????????????????? | | ?????????????????????????????????????????????????? | | ?????????????????????????????????????????????????? | | ?????????????????????????????????????????????????? | | ?????????????????????????????????????????????????? | | ?????????????????????????????????????????????????? | | ?????????????????????????????????????????????????? | | ?????????????????????????????????????????????????? | | ?????????????????????????????????????????????????? | | ?????????????????????????????????????????????????? | | ?????????????????????????????????????????????????? | | ?????????????????????????????????????????????????? | | ?????????????????????????????????????????????????? | | ?###?????????????????????????????????????????????? | | ## #######???????????????????????????????????????? | | # # ###?????????????????????????????????????? | | #?????????????????????????????????????? | | * ##??????#####??####????????????????????? | | #??????## #### ##???????????????????? | | #?????## ##??????????????????? | | ### #######?## #??????????????????? | | ### # ## #?# @ #??????????????????? | | ##?## ### R R ##?????????????????? | | #??# # ## ## RRRR #?????????????????? | | "#??####### ### ## #????#????????????? | | ""##????### #?######## ##?? #????????????? | | "" ##???# # ##??????#### ### #????????????? | | ##""##### ###????## ### #????????????? | | ?# " ## %*& ##???# ## """ ??????????? | | ## =%=%!% ##### % """????????????? | | #"" %!=* ## % """????????????? | | ### %[ =! """???????????? | | ##?# ]%= ### "#???????????? | | # #??# ## ! ## ##?? ""#???????????? | | ####??###### # #?????##???????????? | | ???????????####"# ### ### #????????????????? | | ??????????????#?###?# #?? #????????????????? | | ????????????????????### ?? #???????????????? | | ??????????????????????# ?## # ??????????????? | | ??????????????????????# ??# # ?????????????? | | ??????????????????????## ?? ? ????????????? | | ????????????????????????# #? ###? ????????????? | | ????????????????????????? #??#?????????????????? | | ????????????????????????? #????????????????????? | | ????????????????????????? #????????????????????? | | ?????????????????????????? ????????????????????? | +----------------------------------------------------+ Best States ------------- Heat Dissipation 25 Energy Generation 10 Energy Capacity 125 Matter Stores 300 Matter Capacity 300 Sight Range 16 Terrain Scan Density 10 Armor Coverage 800 Evasion (%) 50 Item Schematics ----------------- None Robot Schematics ------------------ None Fabricated ------------ Nothing Alien Tech Used ----------------- None Achievements -------------- Fist Fight I Survived The Infestation Unlikely Earthworm Challenges ------------ None Game ------ Seed LightpackWeldingPick Manual? 0 Play Time 00:27:14 Cumulative 2.1 hours Start 2024.04.02 @ 00:24:46 End 2024.04.02 @ 00:52:27 Sessions 1 Manual Loads 0 Difficulty Rogue Special Mode None Game No. 2 Rogue 2 Adventurer 0 Explorer 0 Win Type - Total 0 Types 0/0/0/0/0/0/0/0/0 Lore% 0 Gallery% 4 Achievement% 5 Wizard Run 0 Options --------- Layout 1 ASCII 0 Keyboard 0 Movement Arrows Keybinds 0 Fullscreen 1 Font 32/SmallcapsGlow Map View 50x35 Zoom Use 0% Tactical HUD 0 Map Filters NONE Filters NONE Steam 1 RUN: a7b87c1c-75f9-4663-9567-e309962c1de9